[Event "Sunway Sitges Chess Festival"]
[Date "2024.12.21"]
[White "Velten, Paul"]
[Black "Grebennikov, Nikolai A."]
[WhiteElo "2501"]
[BlackElo "2194"]
[Round "2.11"]
[Result "1-0"]
[TimeControl "40/5400+30:1800+30"]

1. d4 Nf6 {[%clk 1:30:42]} 2. Nf3 {[%clk 1:30:13]} 2... g6 3. c4 {[%clk
1:23:45]} 3... Bg7 {[%clk 1:24:47]} 4. e3 {[%clk 1:21:11]} 4... b6 5. Nc3 {[%clk
1:14:43]} 5... d5 {[%clk 1:14:53]} 6. Qa4+ {[%clk 0:53:36]} 6... Bd7 {[%clk
0:54:47]} 7. Qb3 {[%clk 0:51:44]} 7... dxc4 {[%clk 0:53:30]} 8. Bxc4 {[%clk
0:50:38]} 8... O-O {[%clk 0:52:52]} 9. Ne5 {[%clk 0:42:40]} 9... Be8 {[%clk
0:45:35]} 10. O-O {[%clk 0:35:09]} 10... e6 11. Rd1 {[%clk 0:26:56]} 11... Nc6
{[%clk 0:31:44]} 12. Bb5 {[%clk 1:04:43]} 12... Qd6 13. Nf3 Na5 14. Qc2 Nd5 15.
Bf1 c5 {[%clk 0:13:48]} 16. Nxd5 exd5 {[%clk 0:12:25]} 17. dxc5 {[%clk 0:57:10]}
17... bxc5 18. Bd2 {[%clk 0:55:20]} 18... Nc6 {[%clk 0:11:44]} 19. Rac1 {[%clk
0:52:31]} 19... c4 {[%clk 0:09:12]} 20. Bc3 {[%clk 0:50:35]} 20... Nb4 21. Qd2
{[%clk 0:46:42]} 21... Bxc3 {[%clk 0:04:51]} 22. bxc3 {[%clk 0:46:24]} 22... Nd3
23. Bxd3 {[%clk 0:56:16]} 23... cxd3 24. Qxd3 {[%clk 0:55:38]} 24... Ba4 25.
Qxd5 {[%clk 0:55:41]} 25... Qa3 26. Re1 {[%clk 0:55:13]} 26... Rfd8 {[%clk
0:06:14]} 27. Qa5 {[%clk 0:54:23]} 27... Rdc8 28. Nd4 {[%clk 0:53:27]} 28...
Rab8 29. h4 {[%clk 0:52:52]} 29... Rb2 30. h5 {[%clk 0:51:08]} 30... Rxa2 31. h6
{[%clk 0:48:58]} 31... Qd6 32. Ra1 {[%clk 0:49:06]} 32... Rc5 {[%clk 0:02:40]}
33. Qxc5 {[%clk 0:45:23]} 33... Qxc5 {[%clk 0:03:03]} 34. Rxa2 {[%clk 0:43:31]}
34... Be8 {[%clk 0:02:53]} 35. Rea1 {[%clk 0:42:42]} 35... Qh5 {[%clk 0:01:10]}
36. Rxa7 {[%clk 0:46:29]} 36... Qxh6 {[%clk 0:01:01]} 37. Ra8 {[%clk 0:45:58]}
37... Kf8 {[%clk 0:00:44]} 38. Rb8 {[%clk 0:45:16]} 38... Qh5 {[%clk 0:01:52]}
39. Nf3 {[%clk 0:44:26]} 39... Qd5 {[%clk 0:00:36]} 40. Raa8 {[%clk 0:44:11]}
40... Qd1+ {[%clk 0:31:03]} 41. Kh2 {[%clk 0:42:10]} 41... Qd6+ {[%clk 0:27:05]}
42. g3 {[%clk 0:41:03]} 42... Kg7 {[%clk 0:26:56]} 43. Rxe8 {[%clk 0:35:37]}
43... Qd5 {[%clk 0:19:50]} 44. Kg2 {[%clk 0:33:01]} 44... h5 {[%clk 0:18:39]}
45. Rad8 {[%clk 0:32:27]} 45... Qc6 {[%clk 0:17:38]} 46. Rc8 {[%clk 0:31:56]}
46... Qb7 {[%clk 0:17:28]} 47. e4 {[%clk 0:30:56]} 47... Kf6 {[%clk 0:16:27]}
48. e5+ {[%clk 0:30:02]} 48... Kf5 {[%clk 0:16:17]} 49. e6 {[%clk 0:27:21]}
49... fxe6 {[%clk 0:15:12]} 50. Rf8+ {[%clk 0:27:01]} 50... Ke4 {[%clk 0:15:26]}
51. Rcd8 {[%clk 0:25:49]} 1-0

[Variant "Standard"]
[Site "Europe Echecs"]

[Event "Sunway Sitges Chess Festival"]
[Date "2024.12.21"]
[White "Allahverdiyeva, Ayan"]
[Black "Girel, Joseph"]
[WhiteElo "2194"]
[BlackElo "2494"]
[Round "2.12"]
[Result "1-0"]
[TimeControl "40/5400+30:1800+30"]

1. e4 e6 {[%clk 1:30:02]} 2. d4 d5 3. e5 c5 {[%clk 1:30:28]} 4. c3 Nc6 {[%clk
1:30:21]} 5. Nf3 Nge7 {[%clk 1:27:24]} 6. Na3 {[%clk 1:29:15]} 6... Bd7 {[%clk
1:22:07]} 7. Nc2 {[%clk 1:24:30]} 7... Qa5 {[%clk 1:18:02]} 8. Bd2 {[%clk
1:20:51]} 8... Qb6 {[%clk 1:17:22]} 9. Rb1 {[%clk 1:20:08]} 9... Nf5 {[%clk
1:03:02]} 10. g4 {[%clk 1:18:12]} 10... Nfe7 {[%clk 0:53:11]} 11. Rg1 {[%clk
1:11:09]} 11... cxd4 {[%clk 0:53:08]} 12. cxd4 {[%clk 1:09:43]} 12... Na5 {[%clk
0:45:26]} 13. Ne3 {[%clk 0:59:36]} 13... Rc8 {[%clk 0:38:19]} 14. b3 {[%clk
0:50:34]} 14... Bb5 {[%clk 0:34:56]} 15. b4 {[%clk 0:24:12]} 15... Nc4 16. a4
Nxe3 17. Bxb5+ {[%clk 0:42:22]} 17... Qxb5 18. fxe3 {[%clk 0:40:44]} 18... Qd3
19. Rb3 {[%clk 0:35:34]} 19... Qe4 {[%clk 0:40:42]} 20. Qe2 {[%clk 0:10:32]}
20... Rc4 21. b5 {[%clk 0:-13:-38]} 21... Qc2 22. Qd3 {[%clk 0:-14:-39]} 22...
Qxd3 {[%clk 0:26:21]} 23. Rxd3 {[%clk 0:-14:-54]} 23... Rxa4 24. Rc3 {[%clk
0:-16:-6]} 24... Ra1+ {[%clk 0:25:52]} 25. Kf2 {[%clk 0:09:51]} 25... Rxg1 26.
Kxg1 {[%clk 0:09:37]} 26... Kd7 27. Ng5 {[%clk 0:09:09]} 27... f6 28. Nf7 {[%clk
0:09:00]} 28... Rg8 29. Nd6 {[%clk 0:07:40]} 29... b6 30. Rc1 {[%clk 0:07:19]}
30... fxe5 31. Nf7 {[%clk 0:04:27]} 31... Ng6 {[%clk 0:23:47]} 32. Ra1 {[%clk
0:02:28]} 32... exd4 33. Rxa7+ {[%clk 0:02:18]} 33... Ke8 34. exd4 {[%clk
0:00:-17]} 34... h6 35. Be3 {[%clk 0:-4:-24]} 35... Be7 36. Ne5 {[%clk
0:-5:-22]} 36... Nxe5 {[%clk 0:16:30]} 37. dxe5 {[%clk 0:-7:-20]} 37... Kf7
{[%clk 0:14:21]} 38. Bxb6 Rc8 {[%clk 0:20:30]} 39. Kg2 {[%clk 0:00:51]} 39...
Rc2+ 40. Kf3 {[%clk 0:30:33]} 40... Ke8 41. Bd4 {[%clk 0:25:35]} 41... Rd2 42.
b6 {[%clk 0:16:48]} 42... Rxd4 43. Ra8+ {[%clk 0:15:38]} 43... Kf7 {[%clk
0:29:06]} 44. b7 {[%clk 0:13:20]} 44... Rb4 45. b8=Q {[%clk 0:13:18]} 45... Rxb8
46. Rxb8 {[%clk 0:15:03]} 46... Bc5 47. Rb7+ {[%clk 0:15:45]} 47... Kf8 48. h4
{[%clk 0:14:26]} 48... Bd4 49. Kf4 {[%clk 0:12:33]} 49... Bc3 {[%clk 0:26:23]}
50. g5 {[%clk 0:10:44]} 50... Bd2+ 51. Kg4 {[%clk 0:10:40]} 51... hxg5 52. hxg5
{[%clk 0:08:32]} 52... Bc3 53. Rb3 {[%clk 0:02:40]} 53... Bxe5 54. Re3 {[%clk
0:-1:-44]} 54... Bc7 {[%clk 0:14:27]} 55. Rxe6 {[%clk 0:-3:-10]} 55... d4 56. g6
{[%clk 0:-4:-12]} 56... d3 {[%clk 0:12:58]} 57. Kf3 {[%clk 0:-4:-46]} 57... d2
58. Ke2 {[%clk 0:-5:-31]} 58... Bf4 59. Re4 {[%clk 0:-5:-49]} 59... Bh6 {[%clk
0:12:48]} 60. Re5 {[%clk 0:-8:-13]} 1-0

[Variant "Standard"]
[Site "Europe Echecs"]

[Event "Sunway Sitges Chess Festival"]
[Date "2024.12.21"]
[White "Ilamparthi A R"]
[Black "Lever, Erwan"]
[WhiteElo "2391"]
[BlackElo "2172"]
[Round "2.13"]
[Result "1-0"]
[TimeControl "40/5400+30:1800+30"]

1. e4 {[%clk 1:30:57]} 1... c5 {[%clk 1:30:54]} 2. Nf3 {[%clk 1:31:20]} 2... e6
{[%clk 1:31:19]} 3. d3 {[%clk 1:31:46]} 3... Nc6 {[%clk 1:31:30]} 4. g3 {[%clk
1:32:10]} 4... Nf6 {[%clk 1:31:50]} 5. Bg2 {[%clk 1:32:36]} 5... d6 {[%clk
1:32:06]} 6. O-O {[%clk 1:32:04]} 6... Be7 {[%clk 1:31:56]} 7. c3 {[%clk
1:30:58]} 7... O-O {[%clk 1:31:49]} 8. Re1 {[%clk 1:30:17]} 8... e5 {[%clk
1:31:32]} 9. Na3 {[%clk 1:30:53]} 9... h6 {[%clk 1:28:01]} 10. Nc2 {[%clk
1:26:21]} 10... Be6 {[%clk 1:29:46]} 11. Ne3 {[%clk 1:21:20]} 11... Qd7 {[%clk
1:30:04]} 12. Nh4 {[%clk 1:20:06]} 12... Rae8 {[%clk 1:26:29]} 13. Nhf5 {[%clk
1:18:11]} 13... Bd8 {[%clk 1:24:42]} 14. Qf3 {[%clk 1:14:25]} 14... Kh7 {[%clk
0:55:19]} 15. g4 {[%clk 1:07:48]} 15... Ng8 {[%clk 0:54:02]} 16. Nc4 {[%clk
0:49:19]} 16... Be7 {[%clk 1:20:19]} 17. a4 {[%clk 0:45:18]} 17... g6 18. Nxe7
{[%clk 0:41:24]} 18... Rxe7 19. h3 {[%clk 0:39:46]} 19... f5 {[%clk 0:48:59]}
20. exf5 {[%clk 0:39:16]} 20... gxf5 21. gxf5 {[%clk 0:20:42]} 21... Rxf5 {[%clk
0:47:15]} 22. Qe2 {[%clk 0:18:00]} 22... Rg7 23. Kh2 {[%clk 0:16:49]} 23... Nf6
{[%clk 0:42:16]} 24. f3 {[%clk 0:07:15]} 24... Rh5 {[%clk 0:32:52]} 25. Qf1
{[%clk 0:-1:-34]} 25... Rxg2+ {[%clk 0:23:30]} 26. Qxg2 {[%clk 0:-2:-12]} 26...
Bxh3 {[%clk 0:22:11]} 27. Qg3 {[%clk 0:03:55]} 27... Bf1+ {[%clk 0:22:16]} 28.
Kg1 {[%clk 0:03:22]} 28... Rh3 {[%clk 0:21:30]} 29. Qf2 {[%clk 0:04:32]} 29...
Bxd3 {[%clk 0:21:59]} 30. Ne3 {[%clk 0:00:32]} 30... e4 {[%clk 0:18:36]} 31.
fxe4 {[%clk 0:-11:-27]} 31... Qg7+ {[%clk 0:08:14]} 32. Ng2 {[%clk 0:-12:-15]}
32... Rg3 {[%clk 0:03:54]} 33. Bf4 {[%clk 0:31:29]} 33... Rh3 {[%clk 0:08:14]}
34. Bc1 Rg3 35. Bf4 {[%clk 0:00:36]} 35... Rg4 36. Re3 {[%clk 0:-1:-16]} 36...
Bxe4 {[%clk 0:01:38]} 37. Rg3 {[%clk 0:01:07]} 37... d5 {[%clk 0:01:33]} 38.
Rxg4 {[%clk 0:00:36]} 38... Nxg4 {[%clk 0:01:34]} 39. Qg3 {[%clk 0:00:-39]}
39... Na5 {[%clk 0:00:53]} 40. Rf1 {[%clk 0:00:47]} 40... Nf6 {[%clk 0:00:32]}
41. Qxg7+ {[%clk 0:01:13]} 41... Kxg7 {[%clk 0:00:57]} 42. Be5 {[%clk 0:00:45]}
1-0

[Variant "Standard"]
[Site "Europe Echecs"]

[Event "Sunway Sitges Chess Festival"]
[Date "2024.12.21"]
[White "Li, Harry"]
[Black "Lopez Martinez, Josep Manuel"]
[WhiteElo "2194"]
[BlackElo "2455"]
[Round "2.14"]
[Result "1/2-1/2"]
[TimeControl "40/5400+30:1800+30"]

1. e4 {[%clk 1:30:57]} 1... e6 {[%clk 1:29:23]} 2. d4 d5 3. e5 {[%clk 1:31:50]}
3... c5 4. c3 Nc6 {[%clk 1:29:52]} 5. Nf3 {[%clk 1:33:09]} 5... Bd7 {[%clk
1:29:47]} 6. Be2 {[%clk 1:32:51]} 6... Nge7 7. Na3 {[%clk 1:30:16]} 7... cxd4
{[%clk 1:28:02]} 8. cxd4 {[%clk 1:24:53]} 8... Ng6 {[%clk 1:28:14]} 9. h4 {[%clk
1:24:42]} 9... h6 {[%clk 1:28:28]} 10. h5 {[%clk 1:24:17]} 10... Bb4+ 11. Kf1
{[%clk 1:22:06]} 11... Nge7 12. Nc2 {[%clk 1:22:01]} 12... Ba5 13. Rh3 {[%clk
1:17:59]} 13... Bb6 {[%clk 1:23:39]} 14. Nh4 {[%clk 1:16:39]} 14... Nf5 {[%clk
1:21:38]} 15. Nxf5 {[%clk 1:16:31]} 15... exf5 {[%clk 1:22:02]} 16. b4 {[%clk
1:01:10]} 16... a6 {[%clk 1:07:10]} 17. a4 {[%clk 1:00:47]} 17... O-O {[%clk
1:07:15]} 18. Raa3 {[%clk 0:59:10]} 18... Kh8 19. Rag3 {[%clk 0:47:03]} 19...
Rg8 {[%clk 0:54:28]} 20. Bf3 Ne7 21. a5 Ba7 {[%clk 0:52:23]} 22. Bf4 Rc8 23. Qd2
Qf8 24. Kg1 {[%clk 0:36:14]} 24... Be6 25. Be2 {[%clk 0:36:04]} 25... Rxc2
{[%clk 0:36:06]} 26. Qxc2 {[%clk 0:36:28]} 26... Nc6 27. Qd2 Qxb4 {[%clk
0:35:22]} 28. Qxb4 {[%clk 0:26:28]} 28... Nxb4 {[%clk 0:35:46]} 29. Rb3 Nc6 30.
Rxb7 Bxd4 31. Bxa6 Nxa5 32. Rb5 Nc4 {[%clk 0:28:07]} 33. Bb7 Rd8 {[%clk
0:24:15]} 34. Rd3 Bxe5 {[%clk 0:24:08]} 35. Bxe5 Nxe5 {[%clk 0:23:36]} 36. Rd4
Rb8 {[%clk 0:22:25]} 37. Rdb4 Rd8 {[%clk 0:22:13]} 38. Rd4 {[%clk 0:14:55]}
38... Rb8 {[%clk 0:18:43]} 39. Rdb4 {[%clk 0:11:01]} 39... Rd8 {[%clk 0:40:17]}
40. f3 {[%clk 0:35:51]} 40... Kh7 {[%clk 0:29:15]} 41. Rd4 {[%clk 0:31:12]}
41... Rb8 {[%clk 0:27:26]} 42. Rdb4 {[%clk 0:31:05]} 42... Rd8 {[%clk 0:18:01]}
43. Rd4 {[%clk 0:30:33]} 43... Rb8 {[%clk 0:17:14]} 44. Rdb4 {[%clk 0:19:11]}
44... Rd8 {[%clk 0:14:49]} 1/2-1/2

[Variant "Standard"]
[Site "Europe Echecs"]

[Event "Sunway Sitges Chess Festival"]
[Date "2024.12.21"]
[White "Raczek, Krzysztof"]
[Black "Coles, Ruben"]
[WhiteElo "2443"]
[BlackElo "2155"]
[Round "2.15"]
[Result "1-0"]
[TimeControl "40/5400+30:1800+30"]

1. Nf3 d5 2. g3 Nf6 3. Bg2 {[%clk 1:30:23]} 3... e6 4. O-O Be7 5. c4 {[%clk
1:30:53]} 5... O-O 6. b3 {[%clk 1:30:38]} 6... b6 {[%clk 1:32:51]} 7. cxd5
{[%clk 1:30:30]} 7... exd5 8. Bb2 {[%clk 1:28:46]} 8... Bb7 9. e3 {[%clk
1:27:59]} 9... Nbd7 10. Nc3 {[%clk 1:11:30]} 10... Nc5 11. d3 {[%clk 1:08:33]}
11... Re8 12. Ne2 {[%clk 1:03:11]} 12... Bd6 13. Nf4 {[%clk 0:46:04]} 13... Ne6
{[%clk 0:51:55]} 14. Rc1 {[%clk 0:40:34]} 14... c5 15. Nxe6 {[%clk 0:39:06]}
15... fxe6 {[%clk 0:45:57]} 16. e4 {[%clk 0:47:12]} 1-0

[Variant "Standard"]
[Site "Europe Echecs"]

[Event "Sunway Sitges Chess Festival"]
[Date "2024.12.21"]
[White "Travadon, Loic"]
[Black "Lyutsinger, Iren"]
[WhiteElo "2428"]
[BlackElo "2150"]
[Round "2.16"]
[Result "1-0"]
[TimeControl "40/5400+30:1800+30"]

1. e4 c5 {[%clk 1:30:47]} 2. Nf3 {[%clk 1:31:01]} 2... d6 {[%clk 1:31:08]} 3. d4
{[%clk 1:30:26]} 3... cxd4 {[%clk 1:31:24]} 4. Nxd4 {[%clk 1:30:16]} 4... Nf6
{[%clk 1:31:46]} 5. Nc3 {[%clk 1:30:00]} 5... a6 {[%clk 1:30:56]} 6. Qd3 {[%clk
1:29:40]} 6... e5 {[%clk 1:30:38]} 7. Nf5 {[%clk 1:14:50]} 7... d5 {[%clk
1:07:55]} 8. Nxd5 {[%clk 1:09:19]} 8... Bxf5 {[%clk 1:07:46]} 9. Nxf6+ {[%clk
1:08:57]} 9... Qxf6 {[%clk 1:07:25]} 10. exf5 {[%clk 1:08:24]} 10... Nc6 {[%clk
1:06:10]} 11. c3 {[%clk 1:04:17]} 11... Bc5 {[%clk 0:51:55]} 12. Qe4 {[%clk
1:01:52]} 12... O-O {[%clk 0:50:59]} 13. Bd3 {[%clk 0:59:00]} 13... Rad8 {[%clk
1:05:14]} 14. h4 {[%clk 0:21:57]} 14... Qd6 {[%clk 0:49:52]} 15. Rh3 {[%clk
0:42:06]} 15... Rd7 {[%clk 0:41:23]} 16. Bg5 f6 {[%clk 0:41:24]} 17. Rd1 {[%clk
0:38:45]} 17... Kh8 {[%clk 0:39:56]} 18. Be2 {[%clk 0:33:48]} 18... Qe7 {[%clk
0:36:37]} 19. Bc1 {[%clk 0:31:53]} 19... Rfd8 {[%clk 0:32:56]} 20. Rxd7 Rxd7
{[%clk 0:36:21]} 21. Rd3 {[%clk 0:27:56]} 21... Nd8 {[%clk 0:34:44]} 22. Rxd7
{[%clk 0:27:47]} 22... Qxd7 {[%clk 0:32:45]} 23. Qd3 {[%clk 0:16:26]} 23... Qxd3
{[%clk 0:32:43]} 24. Bxd3 {[%clk 0:16:09]} 24... Kg8 {[%clk 0:30:38]} 25. a4
{[%clk 0:13:46]} 25... a5 {[%clk 0:29:22]} 26. Be4 {[%clk 0:13:27]} 26... Kf7
{[%clk 0:24:17]} 27. Ke2 {[%clk 0:12:35]} 27... Ke7 {[%clk 0:23:27]} 28. f3
{[%clk 0:24:34]} 28... Kd6 {[%clk 0:23:04]} 29. h5 {[%clk 0:23:02]} 29... h6
{[%clk 0:23:08]} 30. Kd3 {[%clk 0:14:11]} 30... b6 {[%clk 0:14:46]} 31. Kc4
{[%clk 0:12:23]} 31... Nf7 {[%clk 0:13:11]} 32. b4 {[%clk 0:11:37]} 32... axb4
{[%clk 0:12:10]} 33. cxb4 {[%clk 0:24:59]} 33... Bf2 {[%clk 0:11:59]} 34. Bd5
b5+ {[%clk 0:11:43]} 35. axb5 Nd8 {[%clk 0:08:54]} 36. b6 {[%clk 0:23:04]} 36...
Bxb6 {[%clk 0:10:38]} 37. b5 {[%clk 0:23:42]} 37... Kd7 38. Ba3 Ke8 {[%clk
0:05:37]} 39. Bc5 Ba5 {[%clk 0:01:49]} 40. b6 {[%clk 0:52:04]} 40... Bd2 {[%clk
0:01:32]} 41. b7 {[%clk 0:51:30]} 41... Nxb7 42. Bxb7 {[%clk 0:50:43]} 42... Kf7
{[%clk 0:35:50]} 43. Bd5+ {[%clk 0:50:20]} 43... Ke8 44. Bg8 {[%clk 0:53:05]}
1-0

[Variant "Standard"]
[Site "Europe Echecs"]

[Event "Sunway Sitges Chess Festival"]
[Date "2024.12.21"]
[White "Koudounis, Vasileios"]
[Black "Gormally, Daniel W"]
[WhiteElo "2190"]
[BlackElo "2424"]
[Round "2.17"]
[Result "0-1"]
[TimeControl "40/5400+30:1800+30"]

1. d4 Nf6 2. c4 {[%clk 1:31:13]} 2... e6 {[%clk 1:21:26]} 3. Nc3 {[%clk
1:31:53]} 3... Bb4 {[%clk 1:21:08]} 4. e3 {[%clk 1:30:57]} 4... O-O {[%clk
1:21:16]} 5. Bd3 {[%clk 1:26:30]} 5... b6 6. Ne2 {[%clk 1:21:41]} 6... Bb7
{[%clk 1:12:57]} 7. a3 {[%clk 1:20:38]} 7... Bxc3+ 8. Nxc3 {[%clk 1:20:26]} 8...
d5 {[%clk 1:12:40]} 9. cxd5 {[%clk 1:19:12]} 9... Nxd5 {[%clk 1:11:54]} 10. O-O
{[%clk 1:16:18]} 10... c5 11. Qc2 {[%clk 1:12:55]} 11... cxd4 12. exd4 {[%clk
1:08:47]} 12... Qh4 13. Re1 {[%clk 1:04:04]} 13... Nd7 {[%clk 0:58:51]} 14. Ne4
{[%clk 0:54:08]} 14... Rfc8 {[%clk 0:49:24]} 15. Qd1 {[%clk 0:54:03]} 15... Qe7
16. b4 {[%clk 0:39:28]} 16... Nf8 17. b5 {[%clk 0:39:28]} 17... f6 {[%clk
0:43:39]} 18. Bd2 {[%clk 0:39:28]} 0-1

[Variant "Standard"]
[Site "Europe Echecs"]

[Event "Sunway Sitges Chess Festival"]
[Date "2024.12.21"]
[White "Leisch, Lukas"]
[Black "Montes Molina, Ivan"]
[WhiteElo "2417"]
[BlackElo "2144"]
[Round "2.18"]
[Result "1-0"]
[TimeControl "40/5400+30:1800+30"]

1. e4 {[%clk 1:30:57]} 1... e6 {[%clk 1:30:52]} 2. d4 {[%clk 1:31:22]} 2... d5
{[%clk 1:31:10]} 3. e5 {[%clk 1:31:13]} 3... c5 {[%clk 1:31:30]} 4. c3 {[%clk
1:32:09]} 4... Nc6 {[%clk 1:31:56]} 5. Nf3 {[%clk 1:32:32]} 5... Nh6 {[%clk
1:30:40]} 6. Bxh6 {[%clk 1:31:50]} 6... gxh6 {[%clk 1:30:29]} 7. Bb5 {[%clk
1:30:24]} 7... Qb6 {[%clk 1:30:19]} 8. Qe2 {[%clk 1:30:16]} 8... Bg7 {[%clk
1:22:15]} 9. O-O {[%clk 1:27:01]} 9... O-O {[%clk 1:26:02]} 10. Rd1 {[%clk
1:22:34]} 10... a6 {[%clk 1:12:45]} 11. Bd3 {[%clk 1:12:16]} 11... f6 {[%clk
1:10:52]} 12. exf6 {[%clk 1:10:37]} 12... Rxf6 {[%clk 1:02:21]} 13. Qc2 {[%clk
1:02:28]} 13... Rxf3 {[%clk 0:55:03]} 14. dxc5 Qxc5 {[%clk 0:54:54]} 15. gxf3
{[%clk 0:57:41]} 15... e5 {[%clk 0:44:37]} 16. Nd2 {[%clk 0:47:22]} 16... Bh3
{[%clk 0:57:36]} 17. Bf5 {[%clk 0:45:42]} 17... Bxf5 18. Qxf5 {[%clk 0:44:27]}
18... Qe7 19. Kh1 {[%clk 0:43:37]} 19... Rf8 20. Qh5 Nd8 21. Rg1 {[%clk
0:41:12]} 21... Ne6 {[%clk 0:40:39]} 22. Qxe5 {[%clk 0:38:22]} 22... Qd7 {[%clk
0:35:06]} 23. Rae1 {[%clk 0:38:49]} 23... Ng5 {[%clk 0:26:34]} 24. Qe7 {[%clk
0:30:53]} 24... Qf5 {[%clk 0:23:46]} 25. Rg3 {[%clk 0:28:41]} 25... Qf4 {[%clk
0:22:06]} 26. Qe3 {[%clk 0:27:46]} 26... Qf5 {[%clk 0:18:54]} 27. h4 Nh3 {[%clk
0:11:12]} 28. Qxh6 Nxf2+ {[%clk 0:33:22]} 29. Kg2 Ng4 {[%clk 0:33:04]} 30. Qe6+
Qxe6 {[%clk 0:32:56]} 31. Rxe6 {[%clk 0:17:33]} 31... Nf6 {[%clk 0:31:08]} 32.
Re7 {[%clk 0:16:33]} 32... Rf7 33. Rxf7 {[%clk 0:16:19]} 33... Kxf7 {[%clk
0:33:59]} 34. Nb3 {[%clk 0:15:36]} 34... Bh6 {[%clk 0:34:12]} 35. Kf1 {[%clk
0:15:34]} 35... Ke6 {[%clk 0:33:14]} 36. Nc5+ {[%clk 0:14:14]} 36... Kf5 {[%clk
0:31:39]} 37. Nxb7 {[%clk 0:13:16]} 37... Kf4 {[%clk 0:30:43]} 38. Kf2 {[%clk
0:12:09]} 38... Bf8 {[%clk 0:28:25]} 39. a3 {[%clk 0:11:35]} 39... h6 {[%clk
0:27:38]} 40. b4 {[%clk 0:40:35]} 40... Kf5 {[%clk 0:25:59]} 41. Rg1 {[%clk
0:39:38]} 41... Nh5 {[%clk 1:03:19]} 42. Re1 {[%clk 0:39:07]} 42... Bg7 {[%clk
1:01:33]} 43. Nd6+ Kf4 {[%clk 0:59:21]} 44. c4 {[%clk 0:33:36]} 44... Bf6 {[%clk
0:57:51]} 45. Kg2 {[%clk 0:33:32]} 45... Bxh4 {[%clk 0:56:43]} 46. Rh1 {[%clk
0:32:11]} 46... Bg5 {[%clk 0:56:31]} 47. Rxh5 {[%clk 0:31:54]} 47... d4 {[%clk
0:56:10]} 48. Ne4 {[%clk 0:33:00]} 1-0

[Variant "Standard"]
[Site "Europe Echecs"]

[Event "Sunway Sitges Chess Festival"]
[Date "2024.12.21"]
[White "Beisteiner, Joachim"]
[Black "Arfan, Aditya Bagus"]
[WhiteElo "2161"]
[BlackElo "2416"]
[Round "2.19"]
[Result "0-1"]
[TimeControl "40/5400+30:1800+30"]

1. e4 c5 {[%clk 1:30:40]} 2. c3 {[%clk 1:31:09]} 2... d5 {[%clk 1:30:35]} 3.
exd5 {[%clk 1:31:16]} 3... Qxd5 {[%clk 1:30:24]} 4. d4 {[%clk 1:31:12]} 4... Nf6
{[%clk 1:30:00]} 5. Nf3 {[%clk 1:31:02]} 5... e6 {[%clk 1:29:34]} 6. Na3 {[%clk
1:25:49]} 6... Nc6 {[%clk 1:28:30]} 7. Be3 {[%clk 1:24:05]} 7... cxd4 {[%clk
1:27:46]} 8. Nb5 {[%clk 1:19:40]} 8... Qd7 {[%clk 1:26:05]} 9. Nbxd4 {[%clk
1:28:45]} 9... a6 {[%clk 1:21:00]} 10. Be2 {[%clk 1:22:47]} 10... Nd5 {[%clk
1:11:36]} 11. Bd2 {[%clk 1:16:56]} 11... Bc5 {[%clk 1:08:10]} 12. Nxc6 {[%clk
1:14:13]} 12... Qxc6 {[%clk 1:18:12]} 13. c4 {[%clk 1:12:08]} 13... Nf6 {[%clk
1:12:38]} 14. O-O {[%clk 1:06:47]} 14... Ne4 {[%clk 1:08:15]} 15. Be1 {[%clk
1:00:03]} 15... b6 {[%clk 1:00:43]} 16. b4 {[%clk 0:56:43]} 16... Be7 {[%clk
0:49:14]} 17. Rc1 {[%clk 0:26:16]} 17... O-O {[%clk 0:57:03]} 18. Nd2 Rd8 19.
Qc2 Bb7 20. Qxe4 {[%clk 0:34:23]} 20... Qxe4 {[%clk 0:40:55]} 21. Nxe4 {[%clk
0:34:49]} 21... Bxe4 {[%clk 0:40:45]} 22. Bc3 {[%clk 0:30:23]} 22... Bd3 {[%clk
0:34:53]} 23. Bxd3 {[%clk 0:29:23]} 23... Rxd3 {[%clk 0:34:31]} 24. Rc2 {[%clk
0:24:16]} 24... Rc8 {[%clk 0:32:38]} 25. Bd2 {[%clk 0:19:20]} 25... e5 {[%clk
0:31:33]} 26. g3 {[%clk 0:15:05]} 26... f5 {[%clk 0:30:59]} 27. Rb1 {[%clk
0:12:30]} 27... Kf7 {[%clk 0:27:03]} 28. Be3 {[%clk 0:20:03]} 28... b5 {[%clk
0:21:48]} 29. c5 {[%clk 0:16:14]} 29... g5 {[%clk 0:17:32]} 30. Rd2 {[%clk
0:08:35]} 30... Rxd2 {[%clk 0:17:24]} 31. Bxd2 {[%clk 0:08:28]} 31... Rd8 {[%clk
0:15:53]} 32. Be1 {[%clk 0:06:24]} 32... e4 {[%clk 0:15:52]} 33. a4 {[%clk
0:04:07]} 33... bxa4 {[%clk 0:12:40]} 34. Bc3 {[%clk 0:01:40]} 34... Ke6 {[%clk
0:09:48]} 35. Kf1 {[%clk 0:00:06]} 35... Rd3 {[%clk 0:09:02]} 36. Rc1 {[%clk
1:16:56]} 36... Rd8 {[%clk 0:12:51]} 37. Rb1 Rd3 38. Rc1 a3 39. Ba1 Kd7 40. Ke2
{[%clk 0:01:48]} 40... Kc6 {[%clk 0:09:01]} 41. Be5 Rb3 {[%clk 0:08:37]} 42. Bc3
{[%clk 0:31:31]} 42... a2 {[%clk 0:37:43]} 43. Kd2 {[%clk 0:29:25]} 43... Rxc3
{[%clk 0:37:42]} 0-1

[Variant "Standard"]
[Site "Europe Echecs"]

[Event "Sunway Sitges Chess Festival"]
[Date "2024.12.21"]
[White "Villar Reymundo, Juan Antonio"]
[Black "Abergel, Thal"]
[WhiteElo "2147"]
[BlackElo "2411"]
[Round "2.20"]
[Result "0-1"]
[TimeControl "40/5400+30:1800+30"]

1. d4 {[%clk 1:13:42]} 1... d5 {[%clk 1:30:50]} 2. Nf3 {[%clk 1:13:16]} 2... e6
3. c4 {[%clk 1:12:04]} 3... Nf6 4. g3 {[%clk 1:12:50]} 4... Be7 {[%clk 1:31:21]}
5. Bg2 {[%clk 1:12:58]} 5... O-O {[%clk 1:31:07]} 6. O-O {[%clk 1:12:51]} 6...
c6 {[%clk 1:30:59]} 7. Qc2 {[%clk 1:12:37]} 7... b6 {[%clk 1:30:11]} 8. Nbd2
{[%clk 1:10:55]} 8... Ba6 {[%clk 1:29:06]} 9. b3 {[%clk 1:10:01]} 9... c5 {[%clk
1:18:59]} 10. dxc5 {[%clk 1:09:47]} 10... bxc5 {[%clk 1:16:16]} 11. Ne5 {[%clk
1:09:38]} 11... Bb7 {[%clk 1:15:10]} 12. Bb2 {[%clk 1:09:00]} 12... Na6 {[%clk
1:12:57]} 13. Rac1 {[%clk 1:07:18]} 13... Qb6 {[%clk 1:12:21]} 14. cxd5 {[%clk
1:07:03]} 14... exd5 {[%clk 1:09:34]} 15. Ndf3 {[%clk 1:05:10]} 15... h6 {[%clk
1:01:46]} 16. Qb1 {[%clk 1:02:43]} 16... Rad8 {[%clk 1:00:10]} 17. Rfd1 {[%clk
0:57:48]} 17... Nc7 {[%clk 0:51:24]} 18. Qa1 {[%clk 0:56:19]} 18... Rfe8 {[%clk
0:47:33]} 19. Nd3 {[%clk 0:53:18]} 19... Ne6 {[%clk 0:45:27]} 20. Nh4 {[%clk
0:50:17]} 20... Ne4 {[%clk 1:07:18]} 21. Ne5 {[%clk 0:15:12]} 0-1

[Variant "Standard"]
[Site "Europe Echecs"]